[Event "*** SCC Grand Prix: Titled Tuesday Blitz"]
[Site "Chess.com"]
[Date "2020.08.25"]
[Round "6"]
[White "bazar-wokzal"]
[Black "vinniethepooh"]
[Result "0-1"]
[WhiteElo "2476"]
[BlackElo "2664"]
[TimeControl "180+1"]
[EndTime "11:08:40 PDT"]
[Termination "vinniethepooh won on time"]

1. e4 {[%clk 0:03:00.9]} 1... c5 {[%clk 0:03:00.1]} 2. c3 {[%clk 0:03:00.6]}
2... d5 {[%clk 0:02:59.1]} 3. exd5 {[%clk 0:03:00.5]} 3... Qxd5 {[%clk 0:03:00]}
4. d4 {[%clk 0:03:00.4]} 4... Nf6 {[%clk 0:03:00.5]} 5. Nf3 {[%clk 0:03:00.2]}
5... e6 {[%clk 0:03:01]} 6. a3 {[%clk 0:03:00]} 6... Nc6 {[%clk 0:03:00.2]} 7.
Be3 {[%clk 0:02:59]} 7... cxd4 {[%clk 0:02:59.5]} 8. cxd4 {[%clk 0:02:59.5]}
8... Be7 {[%clk 0:03:00.1]} 9. Nc3 {[%clk 0:02:59.4]} 9... Qd6 {[%clk
0:03:00.7]} 10. Qc2 {[%clk 0:02:59.4]} 10... O-O {[%clk 0:03:00.6]} 11. Bd3
{[%clk 0:02:59.6]} 11... h6 {[%clk 0:02:50]} 12. Rc1 {[%clk 0:02:56]} 12... Nd5
{[%clk 0:02:45.2]} 13. Ne4 {[%clk 0:02:54.9]} 13... Qc7 {[%clk 0:02:39.2]} 14.
O-O {[%clk 0:02:49.4]} 14... Bd7 {[%clk 0:02:38.9]} 15. b4 {[%clk 0:02:42.3]}
15... a6 {[%clk 0:02:35.9]} 16. Qd2 {[%clk 0:02:41.5]} 16... f5 {[%clk
0:02:19.8]} 17. Bxh6 {[%clk 0:02:27.7]} 17... fxe4 {[%clk 0:01:55.7]} 18. Bxe4
{[%clk 0:02:27.5]} 18... gxh6 {[%clk 0:01:39.8]} 19. Qxh6 {[%clk 0:02:26.6]}
19... Rf7 {[%clk 0:01:38.3]} 20. Ne5 {[%clk 0:02:10.3]} 20... Rg7 {[%clk
0:01:30]} 21. Ng6 {[%clk 0:02:07.9]} 21... Bf6 {[%clk 0:01:06.8]} 22. Qh8+
{[%clk 0:02:02.2]} 22... Kf7 {[%clk 0:01:06]} 23. Qxa8 {[%clk 0:02:02.1]} 23...
Rg8 {[%clk 0:01:02]} 24. Rxc6 {[%clk 0:01:32.4]} 24... Bxc6 {[%clk 0:00:58.3]}
25. Qa7 {[%clk 0:01:32.8]} 25... Nf4 {[%clk 0:00:48.1]} 26. Bxc6 {[%clk
0:01:09.9]} 26... Ne2+ {[%clk 0:00:47.4]} 27. Kh1 {[%clk 0:01:09.2]} 27... Qxc6
{[%clk 0:00:47.8]} 28. d5 {[%clk 0:01:01.8]} 28... Qxd5 {[%clk 0:00:47.2]} 29.
Qe3 {[%clk 0:00:38.1]} 29... Rxg6 {[%clk 0:00:46.4]} 30. f3 {[%clk 0:00:30.7]}
30... Ng3+ {[%clk 0:00:10.3]} 31. hxg3 {[%clk 0:00:29.3]} 31... Bd4 {[%clk
0:00:10.9]} 32. Qf4+ {[%clk 0:00:24.5]} 32... Kg7 {[%clk 0:00:11.1]} 33. Qc7+
{[%clk 0:00:17.9]} 33... Kh8 {[%clk 0:00:11.6]} 34. Qb8+ {[%clk 0:00:10.1]}
34... Kh7 {[%clk 0:00:11.4]} 35. Qc7+ {[%clk 0:00:10.3]} 35... Bg7 {[%clk
0:00:03.8]} 0-1

[Event "*** SCC Grand Prix: Titled Tuesday Blitz"]
[Site "Chess.com"]
[Date "2020.08.25"]
[Round "6"]
[White "annacramling"]
[Black "VladimirBugayev"]
[Result "0-1"]
[WhiteElo "2133"]
[BlackElo "2292"]
[TimeControl "180+1"]
[EndTime "11:08:40 PDT"]
[Termination "VladimirBugayev won by checkmate"]

1. d4 {[%clk 0:03:00.9]} 1... d5 {[%clk 0:02:59.3]} 2. c4 {[%clk 0:03:00.4]}
2... c6 {[%clk 0:02:59.7]} 3. Nf3 {[%clk 0:02:59.5]} 3... Nf6 {[%clk 0:03:00]}
4. Nc3 {[%clk 0:02:59.9]} 4... e6 {[%clk 0:02:59.9]} 5. e3 {[%clk 0:02:59.6]}
5... Nbd7 {[%clk 0:03:00.3]} 6. Bd3 {[%clk 0:02:59.3]} 6... dxc4 {[%clk
0:02:59.8]} 7. Bxc4 {[%clk 0:03:00.2]} 7... Bd6 {[%clk 0:02:59.7]} 8. O-O {[%clk
0:03:00.7]} 8... b5 {[%clk 0:03:00.3]} 9. Bd3 {[%clk 0:03:00.3]} 9... O-O {[%clk
0:03:00.3]} 10. e4 {[%clk 0:02:59.6]} 10... e5 {[%clk 0:03:00]} 11. dxe5 {[%clk
0:02:48.9]} 11... Nxe5 {[%clk 0:02:59.3]} 12. Nxe5 {[%clk 0:02:48]} 12... Bxe5
{[%clk 0:02:59.4]} 13. Be3 {[%clk 0:02:43.6]} 13... Ng4 {[%clk 0:02:31.6]} 14.
g3 {[%clk 0:02:25]} 14... Nxe3 {[%clk 0:02:24.5]} 15. fxe3 {[%clk 0:02:25.9]}
15... Qb6 {[%clk 0:02:15.5]} 16. Qe2 {[%clk 0:02:25.3]} 16... Bg4 {[%clk
0:01:58.8]} 17. Qf2 {[%clk 0:02:20.7]} 17... Rad8 {[%clk 0:01:54.1]} 18. Bc2
{[%clk 0:02:00.8]} 18... Rd6 {[%clk 0:01:31.3]} 19. Rae1 {[%clk 0:01:32]} 19...
Bh3 {[%clk 0:01:20.3]} 20. Qe2 {[%clk 0:00:56.2]} 20... Bxf1 {[%clk 0:01:12]}
21. Rxf1 {[%clk 0:00:57.1]} 21... f6 {[%clk 0:01:06.3]} 22. Bb3+ {[%clk
0:00:56.4]} 22... Kh8 {[%clk 0:01:06.1]} 23. Qh5 {[%clk 0:00:52]} 23... Qxe3+
{[%clk 0:01:05.3]} 24. Kh1 {[%clk 0:00:51.9]} 24... Bxc3 {[%clk 0:00:55.6]} 25.
bxc3 {[%clk 0:00:52.8]} 25... Qxe4+ {[%clk 0:00:55.5]} 26. Kg1 {[%clk
0:00:32.9]} 26... Rd2 {[%clk 0:00:53]} 27. Qf3 {[%clk 0:00:31.1]} 27... Qxf3
{[%clk 0:00:50.6]} 28. Rxf3 {[%clk 0:00:32]} 28... Re8 {[%clk 0:00:50.2]} 29.
Rf2 {[%clk 0:00:25.5]} 29... Ree2 {[%clk 0:00:43]} 30. Rxe2 {[%clk 0:00:25.4]}
30... Rxe2 {[%clk 0:00:43.2]} 31. h3 {[%clk 0:00:22.7]} 31... g6 {[%clk
0:00:42.2]} 32. Kf1 {[%clk 0:00:22.1]} 32... Re3 {[%clk 0:00:39.3]} 33. Kf2
{[%clk 0:00:11.8]} 33... Rxc3 {[%clk 0:00:39.1]} 34. h4 {[%clk 0:00:11.2]} 34...
Kg7 {[%clk 0:00:33.8]} 35. g4 {[%clk 0:00:11.7]} 35... f5 {[%clk 0:00:33.7]} 36.
gxf5 {[%clk 0:00:12]} 36... gxf5 {[%clk 0:00:33.9]} 37. h5 {[%clk 0:00:11.5]}
37... Rxb3 {[%clk 0:00:32.9]} 38. axb3 {[%clk 0:00:11]} 38... c5 {[%clk
0:00:33.3]} 39. Ke3 {[%clk 0:00:11.1]} 39... Kf6 {[%clk 0:00:33]} 40. Kf4 {[%clk
0:00:10.3]} 40... a5 {[%clk 0:00:33.1]} 41. Ke3 {[%clk 0:00:10]} 41... Ke5
{[%clk 0:00:32.7]} 42. h6 {[%clk 0:00:08.9]} 42... f4+ {[%clk 0:00:32.8]} 43.
Kf3 {[%clk 0:00:09.1]} 43... a4 {[%clk 0:00:33.4]} 44. bxa4 {[%clk 0:00:08.9]}
44... bxa4 {[%clk 0:00:33.7]} 45. Ke2 {[%clk 0:00:09.6]} 45... a3 {[%clk
0:00:34.3]} 46. Kd3 {[%clk 0:00:09.8]} 46... a2 {[%clk 0:00:34.9]} 47. Kc2
{[%clk 0:00:09.6]} 47... a1=Q {[%clk 0:00:35.1]} 48. Kd2 {[%clk 0:00:10.2]}
48... Qa2+ {[%clk 0:00:35.1]} 49. Kc3 {[%clk 0:00:10.4]} 49... Qa3+ {[%clk
0:00:33]} 50. Kc4 {[%clk 0:00:10.3]} 50... Qb4+ {[%clk 0:00:32.6]} 51. Kd3
{[%clk 0:00:10.6]} 51... c4+ {[%clk 0:00:31.8]} 52. Kc2 {[%clk 0:00:10.5]} 52...
Qb3+ {[%clk 0:00:31.9]} 53. Kd2 {[%clk 0:00:10.7]} 53... Qd3+ {[%clk 0:00:31.4]}
54. Kc1 {[%clk 0:00:10.8]} 54... Qe2 {[%clk 0:00:31.8]} 55. Kb1 {[%clk
0:00:10.4]} 55... c3 {[%clk 0:00:32.4]} 56. Kc1 {[%clk 0:00:09.8]} 56... Qd2+
{[%clk 0:00:33]} 57. Kb1 {[%clk 0:00:09.8]} 57... Qb2# {[%clk 0:00:33.7]} 0-1

[Event "*** SCC Grand Prix: Titled Tuesday Blitz"]
[Site "Chess.com"]
[Date "2020.08.25"]
[Round "6"]
[White "dbrankovic68"]
[Black "BakaPG"]
[Result "0-1"]
[WhiteElo "2492"]
[BlackElo "2684"]
[TimeControl "180+1"]
[EndTime "11:08:45 PDT"]
[Termination "BakaPG won on time"]

1. e4 {[%clk 0:02:59.9]} 1... e6 {[%clk 0:02:59.5]} 2. d3 {[%clk 0:02:59.2]}
2... d5 {[%clk 0:02:59.5]} 3. Nd2 {[%clk 0:02:59.6]} 3... Nf6 {[%clk 0:03:00.1]}
4. Ngf3 {[%clk 0:02:59.5]} 4... Bc5 {[%clk 0:02:58.3]} 5. h3 {[%clk 0:02:53.5]}
5... O-O {[%clk 0:02:47.4]} 6. g3 {[%clk 0:02:52.7]} 6... a5 {[%clk 0:02:42.3]}
7. Bg2 {[%clk 0:02:52.8]} 7... a4 {[%clk 0:02:40.3]} 8. O-O {[%clk 0:02:52.4]}
8... a3 {[%clk 0:02:31.5]} 9. bxa3 {[%clk 0:02:47.5]} 9... Bxa3 {[%clk
0:02:30.3]} 10. Bxa3 {[%clk 0:02:47.9]} 10... Rxa3 {[%clk 0:02:30.3]} 11. Qc1
{[%clk 0:02:40.7]} 11... Ra8 {[%clk 0:02:27.6]} 12. Qb2 {[%clk 0:02:33.7]} 12...
c5 {[%clk 0:02:24.8]} 13. exd5 {[%clk 0:02:26.6]} 13... exd5 {[%clk 0:02:23]}
14. Rfe1 {[%clk 0:02:24]} 14... Nc6 {[%clk 0:02:15.1]} 15. Ne5 {[%clk
0:02:23.5]} 15... Nxe5 {[%clk 0:01:49.7]} 16. Rxe5 {[%clk 0:02:22.4]} 16... Qc7
{[%clk 0:01:43.5]} 17. c4 {[%clk 0:02:19.9]} 17... dxc4 {[%clk 0:01:29.9]} 18.
dxc4 {[%clk 0:02:16.4]} 18... Rd8 {[%clk 0:01:25]} 19. Rae1 {[%clk 0:01:51.6]}
19... h6 {[%clk 0:01:17.3]} 20. Nb1 {[%clk 0:01:50]} 20... Be6 {[%clk
0:01:12.7]} 21. Qb5 {[%clk 0:01:19.2]} 21... Ra5 {[%clk 0:01:08.1]} 22. Qb3
{[%clk 0:01:16]} 22... b5 {[%clk 0:01:04.6]} 23. Rxe6 {[%clk 0:01:11.4]} 23...
fxe6 {[%clk 0:01:04.3]} 24. cxb5 {[%clk 0:01:11.5]} 24... c4 {[%clk 0:01:03]}
25. Qe3 {[%clk 0:01:09.8]} 25... Rxb5 {[%clk 0:00:59]} 26. Nc3 {[%clk
0:01:03.9]} 26... Rb6 {[%clk 0:00:54.7]} 27. g4 {[%clk 0:00:46.7]} 27... Rd3
{[%clk 0:00:53.9]} 28. Qc1 {[%clk 0:00:43.6]} 28... Ra6 {[%clk 0:00:38.6]} 29.
Ne4 {[%clk 0:00:30.9]} 29... Nxe4 {[%clk 0:00:31.9]} 30. Rxe4 {[%clk 0:00:30.8]}
30... c3 {[%clk 0:00:28.8]} 31. Bf1 {[%clk 0:00:30.4]} 31... Rad6 {[%clk
0:00:24.4]} 32. Bxd3 {[%clk 0:00:28.6]} 32... Rxd3 {[%clk 0:00:24.6]} 33. Re3
{[%clk 0:00:13.9]} 33... Rxe3 {[%clk 0:00:18.7]} 34. Qxe3 {[%clk 0:00:13.8]}
34... Qc4 {[%clk 0:00:16.3]} 35. Qc1 {[%clk 0:00:06.1]} 35... c2 {[%clk
0:00:16.1]} 36. a3 {[%clk 0:00:02.8]} 36... Qd3 {[%clk 0:00:15.8]} 37. Kg2
{[%clk 0:00:02.7]} 37... Qd5+ {[%clk 0:00:11.9]} 38. Kg3 {[%clk 0:00:01.5]}
38... Qd1 {[%clk 0:00:08.3]} 39. Qe3 {[%clk 0:00:01.1]} 39... c1=Q {[%clk
0:00:05.1]} 0-1

[Event "*** SCC Grand Prix: Titled Tuesday Blitz"]
[Site "Chess.com"]
[Date "2020.08.25"]
[Round "6"]
[White "Unkreativ3"]
[Black "BogdanDeac"]
[Result "1/2-1/2"]
[WhiteElo "2536"]
[BlackElo "2823"]
[TimeControl "180+1"]
[EndTime "11:08:46 PDT"]
[Termination "Game drawn by agreement"]

1. d4 {[%clk 0:03:00]} 1... Nf6 {[%clk 0:02:55.3]} 2. c4 {[%clk 0:03:00.3]} 2...
e6 {[%clk 0:02:54.7]} 3. Nc3 {[%clk 0:03:00.7]} 3... Bb4 {[%clk 0:02:54.4]} 4.
Nf3 {[%clk 0:03:01.2]} 4... d5 {[%clk 0:02:53.9]} 5. Bg5 {[%clk 0:03:00.7]} 5...
h6 {[%clk 0:02:49.8]} 6. Bxf6 {[%clk 0:03:00.9]} 6... Qxf6 {[%clk 0:02:50.7]} 7.
e3 {[%clk 0:03:01.4]} 7... O-O {[%clk 0:02:50.8]} 8. Rc1 {[%clk 0:02:59.8]} 8...
dxc4 {[%clk 0:02:49.9]} 9. Bxc4 {[%clk 0:03:00.7]} 9... c5 {[%clk 0:02:50.2]}
10. O-O {[%clk 0:03:00.7]} 10... cxd4 {[%clk 0:02:50.7]} 11. Qxd4 {[%clk
0:03:00.9]} 11... Qe7 {[%clk 0:02:34.7]} 12. Rfd1 {[%clk 0:02:47.5]} 12... Bc5
{[%clk 0:02:29.5]} 13. Qe4 {[%clk 0:02:44.8]} 13... Nd7 {[%clk 0:02:28.5]} 14.
Ne5 {[%clk 0:02:36]} 14... Nf6 {[%clk 0:02:26.2]} 15. Qf3 {[%clk 0:02:31.4]}
15... Bd6 {[%clk 0:02:23]} 16. Ng4 {[%clk 0:02:24.5]} 16... Nxg4 {[%clk
0:02:21.9]} 17. Qxg4 {[%clk 0:02:25.4]} 17... Be5 {[%clk 0:02:22.2]} 18. a3
{[%clk 0:02:21.8]} 18... Bd7 {[%clk 0:02:20.3]} 19. Qe4 {[%clk 0:02:19.3]} 19...
Bxc3 {[%clk 0:02:20]} 20. Rxc3 {[%clk 0:02:20.2]} 20... Bc6 {[%clk 0:02:19.5]}
21. Qe5 {[%clk 0:02:03.3]} 21... Rfd8 {[%clk 0:02:09.8]} 22. Rcd3 {[%clk
0:02:02.1]} 22... Rxd3 {[%clk 0:02:09.8]} 23. Rxd3 {[%clk 0:02:03]} 23... Rd8
{[%clk 0:02:08.6]} 24. h3 {[%clk 0:01:55.7]} 24... a6 {[%clk 0:02:04.8]} 25. b4
{[%clk 0:01:32.8]} 25... g6 {[%clk 0:02:00.8]} 26. Qf4 {[%clk 0:01:24.6]} 26...
Rxd3 {[%clk 0:01:57.5]} 27. Bxd3 {[%clk 0:01:23.8]} 27... Qd8 {[%clk 0:01:58.4]}
28. Be4 {[%clk 0:01:13.7]} 28... g5 {[%clk 0:01:02.6]} 29. Qe5 {[%clk
0:00:59.5]} 29... Bxe4 {[%clk 0:01:01.2]} 30. Qxe4 {[%clk 0:01:00.4]} 30... Qd1+
{[%clk 0:01:02]} 31. Kh2 {[%clk 0:01:00.7]} 31... Qd6+ {[%clk 0:01:02.9]} 32. g3
{[%clk 0:00:58.8]} 32... b5 {[%clk 0:00:47.1]} 33. h4 {[%clk 0:00:55]} 33... Kg7
{[%clk 0:00:46.1]} 34. hxg5 {[%clk 0:00:52.7]} 34... hxg5 {[%clk 0:00:47]} 35.
Kg2 {[%clk 0:00:43.3]} 35... Qc7 {[%clk 0:00:42.1]} 36. Qd4+ {[%clk 0:00:39.9]}
36... Kg6 {[%clk 0:00:42]} 37. Qe4+ {[%clk 0:00:34.9]} 37... Kf6 {[%clk
0:00:42]} 38. f4 {[%clk 0:00:32.1]} 38... g4 {[%clk 0:00:37.3]} 39. Kf2 {[%clk
0:00:29.7]} 39... Qc3 {[%clk 0:00:35.9]} 40. Qd4+ {[%clk 0:00:17.1]} 40... Qxd4
{[%clk 0:00:35.1]} 41. exd4 {[%clk 0:00:18]} 41... Ke7 {[%clk 0:00:35.6]} 42.
Ke3 {[%clk 0:00:17.8]} 42... Kd6 {[%clk 0:00:32.2]} 43. Ke4 {[%clk 0:00:17.7]}
43... f5+ {[%clk 0:00:27.4]} 44. Ke3 {[%clk 0:00:17.7]} 44... Kc6 {[%clk
0:00:26.8]} 45. Kd2 {[%clk 0:00:16.6]} 45... Kb6 {[%clk 0:00:26.9]} 46. Kc3
{[%clk 0:00:16.3]} 46... a5 {[%clk 0:00:26.5]} 47. Kd2 {[%clk 0:00:15.8]} 47...
axb4 {[%clk 0:00:22.2]} 48. axb4 {[%clk 0:00:16.7]} 48... Kc6 {[%clk 0:00:22.4]}
49. Ke3 {[%clk 0:00:17]} 49... Kd6 {[%clk 0:00:21.5]} 50. Ke2 {[%clk 0:00:17.1]}
50... Kd5 {[%clk 0:00:21.3]} 51. Kd3 {[%clk 0:00:17.3]} 1/2-1/2

[Event "*** SCC Grand Prix: Titled Tuesday Blitz"]
[Site "Chess.com"]
[Date "2020.08.25"]
[Round "6"]
[White "tylityli"]
[Black "guillembaches"]
[Result "0-1"]
[WhiteElo "2200"]
[BlackElo "2416"]
[TimeControl "180+1"]
[EndTime "11:08:46 PDT"]
[Termination "guillembaches won by resignation"]

1. d4 {[%clk 0:02:56.3]} 1... Nf6 {[%clk 0:02:59.4]} 2. c4 {[%clk 0:02:55.4]}
2... e6 {[%clk 0:02:59.6]} 3. Nc3 {[%clk 0:02:55.2]} 3... Bb4 {[%clk 0:02:59.5]}
4. e3 {[%clk 0:02:54.9]} 4... d5 {[%clk 0:02:57.4]} 5. Ne2 {[%clk 0:02:52.4]}
5... c6 {[%clk 0:02:54.3]} 6. a3 {[%clk 0:02:50.8]} 6... Ba5 {[%clk 0:02:54.4]}
7. b4 {[%clk 0:02:50.2]} 7... Bc7 {[%clk 0:02:54.4]} 8. Ng3 {[%clk 0:02:39.4]}
8... O-O {[%clk 0:02:52.3]} 9. f4 {[%clk 0:02:39.2]} 9... a5 {[%clk 0:02:44.9]}
10. Bb2 {[%clk 0:02:37.9]} 10... axb4 {[%clk 0:02:40.8]} 11. axb4 {[%clk
0:02:37.9]} 11... Rxa1 {[%clk 0:02:40.5]} 12. Bxa1 {[%clk 0:02:34.9]} 12... dxc4
{[%clk 0:02:31]} 13. Bxc4 {[%clk 0:02:34.1]} 13... b5 {[%clk 0:02:27.7]} 14. Bd3
{[%clk 0:02:32.5]} 14... Bd6 {[%clk 0:02:19.6]} 15. Qb3 {[%clk 0:02:29]} 15...
Qe7 {[%clk 0:02:13.9]} 16. Na2 {[%clk 0:02:14.6]} 16... Nd5 {[%clk 0:02:04.4]}
17. O-O {[%clk 0:02:02.5]} 17... f5 {[%clk 0:01:37.3]} 18. Be2 {[%clk
0:01:44.8]} 18... Na6 {[%clk 0:01:32.9]} 19. Rb1 {[%clk 0:01:39.6]} 19... Naxb4
{[%clk 0:01:25.4]} 20. Nxb4 {[%clk 0:01:37.2]} 20... Bxb4 {[%clk 0:01:25.2]} 21.
Bb2 {[%clk 0:01:32.8]} 21... Bd7 {[%clk 0:01:14.3]} 22. Ra1 {[%clk 0:01:30.4]}
22... Be8 {[%clk 0:01:09.4]} 23. Ra6 {[%clk 0:01:21.6]} 23... g5 {[%clk
0:01:00.2]} 24. Bc1 {[%clk 0:01:14]} 24... gxf4 {[%clk 0:00:50]} 25. exf4 {[%clk
0:01:12.5]} 25... Bd6 {[%clk 0:00:50.2]} 26. Qf3 {[%clk 0:01:03.4]} 26... Qg7
{[%clk 0:00:48.2]} 27. Qf2 {[%clk 0:00:53.9]} 27... Kh8 {[%clk 0:00:45.5]} 28.
Nh5 {[%clk 0:00:52.3]} 28... Qh6 {[%clk 0:00:33.6]} 29. Qh4 {[%clk 0:00:41.2]}
29... Be7 {[%clk 0:00:25.7]} 30. Qh3 {[%clk 0:00:37.7]} 30... Nf6 {[%clk
0:00:20.7]} 31. Ra7 {[%clk 0:00:23.1]} 31... Bd8 {[%clk 0:00:16.5]} 32. Ra8
{[%clk 0:00:19]} 32... Bxh5 {[%clk 0:00:15.2]} 33. Ba3 {[%clk 0:00:11.5]} 33...
Rg8 {[%clk 0:00:13.6]} 34. Rxd8 {[%clk 0:00:07.6]} 34... Rxd8 {[%clk 0:00:12]}
35. Be7 {[%clk 0:00:07.1]} 35... Rxd4 {[%clk 0:00:10.8]} 36. Bxf6+ {[%clk
0:00:05.3]} 36... Qxf6 {[%clk 0:00:10.3]} 37. Qxh5 {[%clk 0:00:05.7]} 37... Kg7
{[%clk 0:00:10]} 38. h3 {[%clk 0:00:04.7]} 38... Rxf4 {[%clk 0:00:09.7]} 39. Bf3
{[%clk 0:00:04.5]} 39... Rxf3 {[%clk 0:00:08.1]} 40. gxf3 {[%clk 0:00:04.3]}
40... Qg6+ {[%clk 0:00:08]} 41. Qxg6+ {[%clk 0:00:04]} 41... hxg6 {[%clk
0:00:08.9]} 0-1

[Event "*** SCC Grand Prix: Titled Tuesday Blitz"]
[Site "Chess.com"]
[Date "2020.08.25"]
[Round "6"]
[White "SlavenPastar"]
[Black "serena-maria"]
[Result "0-1"]
[WhiteElo "2429"]
[BlackElo "2303"]
[TimeControl "180+1"]
[EndTime "11:08:48 PDT"]
[Termination "serena-maria won by resignation"]

1. d4 {[%clk 0:03:00.9]} 1... Nf6 {[%clk 0:02:59.9]} 2. c4 {[%clk 0:03:00.7]}
2... g6 {[%clk 0:03:00]} 3. Bg5 {[%clk 0:03:00.5]} 3... Ne4 {[%clk 0:02:57.1]}
4. Bf4 {[%clk 0:02:59.8]} 4... e5 {[%clk 0:02:57.3]} 5. dxe5 {[%clk 0:02:47.4]}
5... Bc5 {[%clk 0:02:57.1]} 6. Nh3 {[%clk 0:02:27.5]} 6... d6 {[%clk 0:02:47.1]}
7. Qd3 {[%clk 0:02:15.4]} 7... Bf5 {[%clk 0:01:53.4]} 8. Qf3 {[%clk 0:02:05.4]}
8... Nc6 {[%clk 0:01:31.1]} 9. Be3 {[%clk 0:00:31.8]} 9... Bb4+ {[%clk 0:00:46]}
10. Nd2 {[%clk 0:00:25.5]} 10... Nxe5 {[%clk 0:00:34.5]} 11. Qf4 {[%clk
0:00:22]} 11... Nxc4 {[%clk 0:00:32.3]} 12. O-O-O {[%clk 0:00:20.6]} 12... Bxd2+
{[%clk 0:00:19.6]} 13. Bxd2 {[%clk 0:00:21.5]} 13... Qf6 {[%clk 0:00:18.5]} 14.
Bc3 {[%clk 0:00:09.2]} 14... Nxc3 {[%clk 0:00:18.3]} 15. Qxc4 {[%clk 0:00:07.6]}
15... Ne4 {[%clk 0:00:09.5]} 16. f3 {[%clk 0:00:04.6]} 16... Bxh3 {[%clk
0:00:09.6]} 17. Qxe4+ {[%clk 0:00:02.8]} 17... Be6 {[%clk 0:00:09.5]} 18. Qa4+
{[%clk 0:00:03.1]} 18... Bd7 {[%clk 0:00:08.4]} 19. Qe4+ {[%clk 0:00:03.8]}
19... Be6 {[%clk 0:00:08.4]} 20. Qa4+ {[%clk 0:00:04]} 20... c6 {[%clk
0:00:08.1]} 21. Qd4 {[%clk 0:00:03.2]} 21... Qg5+ {[%clk 0:00:07.5]} 22. Qd2
{[%clk 0:00:03.1]} 22... Qc5+ {[%clk 0:00:07.3]} 23. Qc2 {[%clk 0:00:03.6]}
23... Qe3+ {[%clk 0:00:06.7]} 24. Qd2 {[%clk 0:00:03.4]} 24... Qb6 {[%clk
0:00:06.7]} 25. Kb1 {[%clk 0:00:03.6]} 25... O-O {[%clk 0:00:06.5]} 26. Qc3
{[%clk 0:00:03.7]} 26... Qa6 {[%clk 0:00:06.4]} 27. a3 {[%clk 0:00:02.9]} 27...
d5 {[%clk 0:00:06.4]} 28. e4 {[%clk 0:00:03.3]} 28... Qa4 {[%clk 0:00:06.6]} 29.
Be2 {[%clk 0:00:02.1]} 29... dxe4 {[%clk 0:00:06.9]} 30. fxe4 {[%clk 0:00:02.5]}
30... Qxe4+ {[%clk 0:00:07.1]} 31. Bd3 {[%clk 0:00:01.9]} 31... Qxg2 {[%clk
0:00:07.5]} 32. Bc2 {[%clk 0:00:02.1]} 32... Qd5 {[%clk 0:00:07.4]} 33. Rxd5
{[%clk 0:00:02]} 33... Bxd5 {[%clk 0:00:08.1]} 34. Rg1 {[%clk 0:00:02.4]} 34...
Rae8 {[%clk 0:00:09]} 35. h4 {[%clk 0:00:03.2]} 35... Re4 {[%clk 0:00:08.6]} 36.
h5 {[%clk 0:00:04.1]} 36... Rh4 {[%clk 0:00:08.5]} 37. h6 {[%clk 0:00:04.8]}
37... Rxh6 {[%clk 0:00:08.6]} 38. Qf6 {[%clk 0:00:05.7]} 38... Rh2 {[%clk
0:00:08.6]} 39. Bxg6 {[%clk 0:00:05.4]} 39... fxg6 {[%clk 0:00:08.1]} 40. Rxg6+
{[%clk 0:00:05.2]} 40... hxg6 {[%clk 0:00:08.7]} 41. Qxg6+ {[%clk 0:00:06.1]}
41... Kh8 {[%clk 0:00:09.3]} 42. Qg5 {[%clk 0:00:06.2]} 42... Rf1+ {[%clk
0:00:08.3]} 0-1

[Event "*** SCC Grand Prix: Titled Tuesday Blitz"]
[Site "Chess.com"]
[Date "2020.08.25"]
[Round "6"]
[White "Vesper2018"]
[Black "okriak"]
[Result "1/2-1/2"]
[WhiteElo "2574"]
[BlackElo "2712"]
[TimeControl "180+1"]
[EndTime "11:08:49 PDT"]
[Termination "Game drawn by repetition"]

1. e4 {[%clk 0:03:00.9]} 1... e6 {[%clk 0:02:59.7]} 2. d4 {[%clk 0:03:00.7]}
2... d5 {[%clk 0:03:00.2]} 3. e5 {[%clk 0:03:00.9]} 3... Bd7 {[%clk 0:02:58.9]}
4. Nf3 {[%clk 0:02:59.2]} 4... c5 {[%clk 0:02:57.5]} 5. c3 {[%clk 0:02:58.4]}
5... Nc6 {[%clk 0:02:57]} 6. Be2 {[%clk 0:02:56.6]} 6... Nge7 {[%clk 0:02:53.5]}
7. O-O {[%clk 0:02:56]} 7... cxd4 {[%clk 0:02:47.1]} 8. cxd4 {[%clk 0:02:54.8]}
8... Nf5 {[%clk 0:02:46.9]} 9. b3 {[%clk 0:02:51.5]} 9... Be7 {[%clk 0:02:39.6]}
10. Bb2 {[%clk 0:02:45.6]} 10... O-O {[%clk 0:02:33.5]} 11. g4 {[%clk
0:02:43.5]} 11... Nh6 {[%clk 0:02:22.4]} 12. h3 {[%clk 0:02:40.9]} 12... f6
{[%clk 0:02:22.4]} 13. exf6 {[%clk 0:02:34.9]} 13... Bxf6 {[%clk 0:02:22]} 14.
Nbd2 {[%clk 0:02:06.1]} 14... Nf7 {[%clk 0:02:19.2]} 15. Re1 {[%clk 0:01:56.5]}
15... Qb6 {[%clk 0:02:18.1]} 16. Nf1 {[%clk 0:01:52.1]} 16... Nd6 {[%clk
0:02:09.3]} 17. Ng3 {[%clk 0:01:51.8]} 17... Ne4 {[%clk 0:02:02.9]} 18. Nh5
{[%clk 0:01:40.8]} 18... Be7 {[%clk 0:01:36.8]} 19. Bd3 {[%clk 0:01:32.5]} 19...
g6 {[%clk 0:01:06.9]} 20. Ng3 {[%clk 0:01:24.3]} 20... Nxg3 {[%clk 0:01:06.1]}
21. fxg3 {[%clk 0:01:24.6]} 21... Bf6 {[%clk 0:00:58.7]} 22. Bf1 {[%clk
0:01:09.8]} 22... e5 {[%clk 0:00:56.5]} 23. Kg2 {[%clk 0:01:04.9]} 23... e4
{[%clk 0:00:56.5]} 24. Nh2 {[%clk 0:00:45.9]} 24... Bxd4 {[%clk 0:00:50.1]} 25.
Bxd4 {[%clk 0:00:44.8]} 25... Nxd4 {[%clk 0:00:50.2]} 26. Qd2 {[%clk 0:00:42.3]}
26... Bc6 {[%clk 0:00:46.4]} 27. Rad1 {[%clk 0:00:39.7]} 27... Nf3 {[%clk
0:00:37.2]} 28. Nxf3 {[%clk 0:00:39]} 28... Rxf3 {[%clk 0:00:37.7]} 29. Qd4
{[%clk 0:00:30]} 29... Qc7 {[%clk 0:00:29.6]} 30. Kh1 {[%clk 0:00:21.1]} 30...
Qxg3 {[%clk 0:00:27.1]} 31. Re2 {[%clk 0:00:18.9]} 31... Raf8 {[%clk 0:00:21.5]}
32. Bg2 {[%clk 0:00:19.3]} 32... Rf2 {[%clk 0:00:20.8]} 33. Rxf2 {[%clk
0:00:19.8]} 33... Rxf2 {[%clk 0:00:19.4]} 34. Rg1 {[%clk 0:00:20.1]} 34... Qf4
{[%clk 0:00:17.2]} 35. b4 {[%clk 0:00:13.1]} 35... e3 {[%clk 0:00:16.6]} 36.
Bxd5+ {[%clk 0:00:12.8]} 36... Bxd5+ {[%clk 0:00:14.3]} 37. Qxd5+ {[%clk
0:00:13.3]} 37... Kg7 {[%clk 0:00:14.5]} 38. Qxb7+ {[%clk 0:00:06.4]} 38... Kf6
{[%clk 0:00:14.8]} 39. g5+ {[%clk 0:00:06.3]} 39... Ke5 {[%clk 0:00:14.5]} 40.
Qc7+ {[%clk 0:00:06.1]} 40... Ke4 {[%clk 0:00:14.7]} 41. Rg4 {[%clk 0:00:05.9]}
41... Rf1+ {[%clk 0:00:11.2]} 42. Kg2 {[%clk 0:00:05]} 42... Rf2+ {[%clk
0:00:11.5]} 43. Kg1 {[%clk 0:00:05.5]} 43... Rf1+ {[%clk 0:00:11.1]} 44. Kg2
{[%clk 0:00:06.1]} 44... Rf2+ {[%clk 0:00:11.6]} 45. Kg1 {[%clk 0:00:06.6]}
45... Rf1+ {[%clk 0:00:11.9]} 46. Kg2 {[%clk 0:00:07.2]} 1/2-1/2